bitfinex-derivatives/quotes_ETHF0:USTF0_20251021
["timestamp","ask_amount","ask_price","bid_price","bid_amount"]
[1761052068586,40.8,3882.9,3882.1,0.32623629]
[1761052068587,0.46349,3882.8,3882.1,0.32623629]
[1761052068771,41.26349,3882.9,3882.1,0.32623629]
[1761052069477,0.46355,3882.4,3882.2,0.3239]
[1761052069686,0.46716,3882.2,3882.1,0.00233629]
[1761052069882,0.46356,3882.2,3882.1,0.00233629]
[1761052070085,0.46356,3882.2,3882.1,0.32623629]
[1761052070389,0.46356,3882.3,3882.1,0.32623629]
[1761052071191,0.46362,3881.8,3881.6,0.3239]
[1761052071380,0.46359,3882.0,3881.6,0.3239]
[1761052071585,40.8,3882.9,3882.1,0.3239]
[1761052071789,0.46351,3882.7,3882.1,0.3239]
[1761052071992,0.46352,3882.6,3882.1,0.46357]
[1761052072188,0.46351,3882.7,3882.6,0.1266]
[1761052072391,9.35,3882.8,3882.2,0.3239]
[1761052072693,0.46352,3882.6,3882.2,0.3239]
[1761052073285,9.35,3882.8,3882.2,0.3239]
[1761052073484,0.46352,3882.6,3882.2,0.3239]
[1761052073679,9.35,3882.8,3882.6,0.1266]
[1761052073984,9.81349,3882.8,3882.7,0.3239]
[1761052074686,0.46354,3882.4,3882.3,0.3239]
[1761052075594,0.46352,3882.6,3882.3,0.3239]
[1761052075989,0.46354,3882.5,3882.3,0.3239]
[1761052076191,0.46714,3882.5,3882.3,0.3239]
[1761052076490,0.46356,3882.2,3882.1,0.32723893]
[1761052077283,0.46716,3882.2,3882.1,0.00333893]
[1761052077691,9.82316,3882.2,3882.1,0.00333893]
[1761052078086,14.82316,3882.2,3882.1,0.00333893]
[1761052079289,0.46369,3881.1,3881.0,0.1266]
[1761052079892,0.46373,3880.8,3880.7,0.3175]
[1761052080089,0.0038,3881.4,3880.3,0.3175]
[1761052080290,1.15924,3881.1,3879.8,0.3175]
[1761052080592,0.46383,3880.0,3879.8,0.3175]
[1761052080795,0.46383,3880.0,3879.6,0.1266]
[1761052081094,9.365,3880.2,3879.2,0.46391]
[1761052081294,9.365,3880.2,3879.7,0.3175]
[1761052081295,0.00264591,3880.2,3879.7,0.3175]
[1761052081498,0.00264591,3880.2,3880.0,0.3175]
[1761052081792,0.00264591,3880.2,3880.1,0.3175]
[1761052082387,0.0038,3881.5,3880.8,0.3175]
[1761052082592,1.37831658,3882.5,3881.1,0.3175]
[1761052082593,0.46741,3881.8,3881.1,0.3175]
[1761052082810,0.90361501,3882.5,3880.8,0.1289]
[1761052082811,2.515,3882.0,3881.5,0.3175]
[1761052083093,0.46363,3881.7,3881.5,0.3175]
[1761052083400,0.00268552,3881.7,3880.9,0.3175]
[1761052083792,0.46368,3881.3,3880.9,0.3175]
[1761052084000,0.00648552,3881.7,3880.9,0.3175]
[1761052084397,0.00268552,3881.7,3881.0,0.3175]
[1761052084604,0.46366,3881.5,3881.4,0.4464]
[1761052084801,0.46631552,3881.7,3881.5,0.3175]
[1761052086309,0.63911803,3881.6,3881.5,0.3175]
[1761052086699,0.00268552,3881.7,3881.5,0.3175]
[1761052087107,0.46631552,3881.7,3881.5,0.3175]
[1761052087703,5.63955264,3881.6,3879.2,0.0031353]
[1761052088006,0.3448,3880.7,3879.2,0.0031353]
[1761052088215,0.46378,3880.4,3879.6,0.1289]
[1761052088405,41.2638,3880.3,3879.6,0.59277]
[1761052088602,40.8,3880.3,3880.2,0.1289]
[1761052088807,0.46378,3880.4,3880.2,0.1289]
[1761052089311,0.64089683,3880.3,3880.2,0.1289]
[1761052089815,41.1448,3880.7,3880.2,0.1289]
[1761052089816,0.46377,3880.5,3880.3,0.3175]
[1761052090012,0.98579022,3880.4,3880.3,0.3175]
[1761052090720,0.64099022,3880.4,3880.3,0.3175]
[1761052091113,0.64099022,3880.4,3879.7,0.3175]
[1761052091420,0.46384,3879.9,3879.7,0.3175]
[1761052091717,0.46382,3880.1,3879.7,0.3175]
[1761052091919,0.64015888,3880.0,3879.7,0.3175]
[1761052092121,1.10399888,3879.9,3879.7,0.3175]
[1761052092418,1.10399888,3879.9,3879.6,0.1289]
[1761052092419,0.90361501,3880.5,3879.8,0.3175]
[1761052092618,0.64043694,3880.4,3880.3,0.3175]
[1761052093328,0.90361501,3881.0,3880.9,0.46372]
[1761052093513,0.90361501,3881.3,3881.0,0.3175]
[1761052093706,0.90361501,3881.5,3881.0,0.3175]
[1761052094021,0.90361501,3881.6,3881.5,0.3175]
[1761052094217,1.3810021,3881.7,3881.5,0.3175]
[1761052094411,0.90377991,3881.6,3881.5,0.3175]
[1761052094607,0.00268552,3881.7,3881.5,0.3175]
[1761052095426,0.46631552,3881.7,3881.5,0.3175]
[1761052096316,0.3448,3881.6,3881.0,0.3175]
[1761052096518,0.80853,3880.8,3880.6,0.3175]
[1761052096822,0.46371,3881.0,3880.6,0.3175]
[1761052097215,0.90377991,3881.2,3880.9,0.3175]
[1761052097415,0.90377991,3881.4,3881.1,0.3175]
[1761052097616,0.90377991,3881.5,3881.1,0.3175]
[1761052097822,1.36745991,3881.3,3881.1,0.3175]
[1761052098221,0.46368,3881.2,3880.9,0.46372]
[1761052098417,0.46368,3881.2,3881.0,0.3276]
[1761052098717,0.46368,3881.2,3880.2,0.1289]
[1761052098718,0.46375,3880.7,3880.6,0.3276]
[1761052099311,0.3218,3880.7,3880.6,0.3276]
[1761052099523,0.46373,3880.8,3880.6,0.3276]
[1761052099924,0.78553,3880.8,3880.6,0.3276]
[1761052100116,1.36750991,3880.8,3880.6,0.3276]
[1761052100516,0.3218,3880.7,3880.6,0.3276]
[1761052101225,1.36750991,3880.8,3880.6,0.3276]
[1761052102320,0.46376,3880.6,3880.4,0.3276]
[1761052102528,0.3218,3880.4,3880.2,0.3276]
[1761052102725,0.3218,3880.4,3880.3,0.3276]
[1761052103017,0.46377,3880.5,3880.3,0.3276]
[1761052103414,0.3218,3880.4,3880.3,0.3276]
[1761052103614,1.22557991,3880.4,3880.3,0.3276]
[1761052104417,0.3218,3880.4,3880.3,0.3276]
[1761052105119,0.46381,3880.1,3880.0,0.3276]
[1761052105320,1.08655124,3880.1,3880.0,0.3276]
[1761052105618,1.52861061,3880.1,3880.0,0.3276]
[1761052105826,0.62274124,3880.1,3880.0,5.3276]
[1761052106821,0.62274124,3880.1,3880.0,5.46382]
[1761052107017,0.62274124,3880.1,3880.0,0.46382]
[1761052107217,1.52861061,3880.1,3880.0,0.46382]
[1761052107419,1.52861061,3880.1,3880.0,0.79142]
[1761052107717,0.62274124,3880.1,3880.0,5.79142]
[1761052109229,0.62274124,3880.1,3880.0,0.79143]
[1761052109525,1.43085124,3880.1,3880.0,0.3276]
[1761052109725,0.46386,3879.7,3879.6,0.4684]
[1761052109922,0.80821,3879.3,3879.2,0.0031353]
[1761052110125,0.3443,3878.7,3878.1,0.3395]
[1761052110328,0.3443,3878.2,3877.2,0.1369]
[1761052110518,0.96704124,3878.1,3877.9,0.3395]
[1761052110721,0.62274124,3878.0,3877.9,0.3395]
[1761052111124,0.62530871,3878.0,3877.9,0.34133048]
[1761052112030,0.00256747,3878.0,3877.9,5.34133048]
[1761052112236,0.46394,3879.1,3878.6,0.3395]
[1761052112418,0.3443,3879.0,3877.9,0.00183048]
[1761052112729,0.46395,3879.0,3878.6,0.3395]
[1761052112935,0.3443,3878.8,3878.6,0.3395]
[1761052113429,0.46665776,3878.8,3878.6,0.3395]
[1761052113628,0.00268776,3878.8,3878.6,0.3395]
[1761052114033,0.00268776,3878.8,3878.7,0.94038]
[1761052114218,0.00268776,3878.8,3877.9,0.34133048]
[1761052114425,0.81095776,3878.8,3878.4,0.3395]
[1761052114628,0.81095776,3878.8,3878.5,0.3395]
[1761052114629,0.00268776,3878.8,3878.5,0.3395]
[1761052115232,0.46665776,3878.8,3878.5,0.3395]
[1761052115634,0.00268776,3878.8,3878.6,0.3395]
[1761052116127,0.00268776,3878.8,3878.6,0.80349]
[1761052116327,0.00268776,3878.8,3878.7,0.3395]
[1761052116920,0.46398,3878.7,3878.4,0.60091]
[1761052117121,0.46398,3878.7,3878.5,0.8035]
[1761052117433,0.3443,3878.7,3878.5,0.8035]
[1761052117634,0.3443,3878.7,3878.6,0.3395]
[1761052118132,0.3443,3878.7,3878.0,0.3395]
[1761052118328,0.3443,3878.7,3877.9,0.00183048]
[1761052118329,0.46402,3878.5,3878.3,0.3395]
[1761052118536,0.46399,3878.6,3878.4,0.3395]
[1761052119033,0.3443,3878.5,3878.4,0.3395]
[1761052119231,0.80832,3878.4,3878.2,0.80354]
[1761052119425,0.46404,3878.2,3878.1,0.3395]
[1761052119622,0.00268776,3878.8,3878.1,0.3395]
[1761052119919,0.80829,3878.6,3878.4,0.3395]
[1761052120127,0.3443,3878.5,3878.4,0.3395]
[1761052120629,0.46402,3878.4,3878.2,0.80354]
[1761052120830,0.46402,3878.4,3878.2,0.46404]
[1761052121127,0.46406,3878.0,3877.9,0.00183048]
[1761052121329,0.3443,3878.3,3877.9,0.34133048]
[1761052122423,0.80836,3878.1,3877.9,0.34133048]
[1761052122624,0.46406,3878.1,3877.9,0.34133048]
[1761052122825,0.46403,3878.3,3878.0,0.3395]
[1761052123036,0.46403,3878.3,3878.1,0.3395]
[1761052123822,0.80833,3878.3,3878.1,0.3395]
[1761052124024,0.46403,3878.3,3878.1,0.3395]
[1761052124420,40.8,3878.5,3877.9,3.048e-05]
[1761052124421,0.80836,3878.0,3877.9,3.048e-05]
[1761052124831,5.80836,3878.0,3877.9,3.048e-05]
[1761052125033,5.80836,3878.0,3877.8,0.02578782]
[1761052125335,0.80847,3877.1,3877.0,0.3395]
[1761052125826,0.46417,3877.1,3877.0,0.3395]
[1761052126222,0.46417,3877.1,3876.6,0.1369]
[1761052126223,0.3443,3877.0,3876.6,0.1369]
[1761052126431,1.16037,3877.4,3876.7,0.3395]
[1761052126432,0.4642,3876.9,3876.7,0.3395]
[1761052126732,0.8085,3876.9,3876.7,0.3395]
[1761052126933,0.3443,3876.9,3876.5,0.3395]
[1761052127131,0.46422,3876.7,3876.6,0.1369]
[1761052127335,0.46422,3876.7,3876.6,0.4764]
[1761052127927,0.46422,3876.7,3876.6,0.3395]
[1761052128235,0.3443,3876.6,3876.5,0.0019557]
[1761052129025,5.1071,3876.6,3874.5,1.38458183]
[1761052129225,5.1071,3876.6,3872.4,0.1369]
[1761052129226,0.3443,3875.8,3874.4,0.3395]
[1761052129525,0.1071,3876.6,3875.1,0.3395]
[1761052129526,0.3443,3876.3,3875.1,0.3395]
[1761052129731,0.80853,3876.7,3875.7,0.3395]
[1761052129932,0.3443,3876.6,3875.9,0.3395]
[1761052130231,0.3443,3876.5,3875.9,0.00255432]
[1761052130430,0.3443,3876.0,3875.9,0.00255432]
[1761052130623,0.46429,3876.1,3875.9,0.00255432]
[1761052130832,0.80859,3876.1,3875.9,0.34205432]
[1761052131235,0.3443,3876.0,3875.9,0.00255432]
[1761052131434,46.2732,3876.0,3875.9,0.00255432]
[1761052131629,0.3443,3875.9,3875.0,0.3395]
[1761052131832,0.3443,3875.3,3875.0,0.3395]
[1761052132136,0.46437,3875.5,3875.0,0.3395]
[1761052132433,0.1071,3874.8,3872.9,20.89]
[1761052132735,0.1071,3874.8,3874.3,0.3395]
[1761052132736,0.3443,3874.7,3874.3,0.3395]
[1761052133038,0.1071,3874.8,3872.9,0.00254347]
[1761052133231,0.3443,3874.5,3873.2,0.3395]
[1761052133436,0.3443,3874.0,3873.2,0.3395]
[1761052133737,0.955,3874.6,3873.2,0.3395]
[1761052133941,1.2993,3874.6,3873.9,0.3395]
[1761052134327,0.3443,3874.4,3872.9,0.34204347]
[1761052134638,0.4645,3874.4,3873.2,0.3395]
[1761052134832,0.3443,3874.1,3873.2,0.3395]
[1761052135135,0.3443,3874.1,3873.3,0.3395]
[1761052135932,0.3443,3874.1,3873.4,0.46462]
[1761052136231,0.3443,3874.1,3873.5,0.3395]
[1761052136438,0.3443,3874.1,3873.5,0.8041]
[1761052137135,0.3443,3874.1,3873.5,0.3395]
[1761052137436,0.3443,3874.0,3872.9,0.34204347]
[1761052137635,0.59317,3873.8,3872.9,0.34204347]
[1761052137940,0.3328,3873.3,3872.9,0.34204347]
[1761052138233,0.3328,3873.0,3871.7,0.1278]
[1761052138437,0.3328,3873.6,3872.5,0.3294]
[1761052138738,0.3328,3873.6,3872.7,0.3294]
[1761052139138,0.3328,3873.6,3873.1,0.1278]
[1761052139433,0.46462,3873.4,3872.8,0.3294]
[1761052139837,0.3328,3873.4,3872.8,0.3294]
[1761052140136,0.3328,3873.4,3872.9,0.3294]
[1761052140336,0.00188433,3873.8,3873.2,0.3294]
[1761052140837,0.00188433,3873.8,3873.4,0.3294]
[1761052141027,0.33468433,3873.8,3873.4,0.3294]
[1761052141337,0.33468433,3873.8,3873.1,0.1278]
[1761052141338,0.3328,3873.7,3873.1,0.1278]
[1761052141540,0.3328,3873.5,3872.7,0.3324076]
[1761052141747,0.46645433,3873.8,3872.8,0.3294]
[1761052142039,0.00188433,3873.8,3873.2,0.3294]
[1761052142537,0.33468433,3873.8,3873.2,0.3294]
[1761052142740,0.00188433,3873.8,3873.6,0.3294]
[1761052143738,0.3328,3874.9,3873.8,0.3294]
[1761052143943,0.3328,3875.3,3874.6,0.3294]
[1761052144238,0.3328,3875.3,3874.6,0.46446]
[1761052144442,0.3328,3875.3,3874.7,0.3294]
[1761052144743,0.33560102,3875.3,3874.9,0.3294]
[1761052144945,0.46441,3875.2,3874.9,0.3294]
[1761052145533,0.46446,3874.7,3874.6,0.3294]
[1761052145733,0.46446,3874.7,3873.9,0.46455]
[1761052145734,0.3328,3874.5,3874.1,0.3294]
[1761052146040,0.79734,3874.0,3873.2,0.3294]
[1761052146240,1.16113,3874.9,3873.2,0.3294]
[1761052146241,0.46454,3874.1,3873.2,0.3294]
[1761052146433,0.79726,3874.7,3873.5,0.46459]
[1761052146638,0.3328,3874.7,3873.6,0.3294]
[1761052146938,0.3328,3874.7,3873.1,0.1278]
[1761052146939,0.46446,3874.8,3874.0,0.46454]
[1761052147146,0.3328,3874.9,3874.2,0.3294]
[1761052147333,0.46447,3874.7,3874.2,0.3294]
[1761052147539,0.46444,3874.9,3874.2,0.3294]
[1761052147844,0.46444,3874.9,3874.5,0.3294]
[1761052148143,0.79724,3874.9,3874.5,0.3294]
[1761052148447,0.3328,3875.2,3874.6,0.3294]
[1761052148635,0.79725,3874.8,3874.6,0.3294]
[1761052148836,0.3328,3874.1,3873.8,0.3294]
[1761052149144,0.79734,3874.0,3873.8,0.3294]
[1761052149439,0.46455,3874.0,3873.5,0.3294]
[1761052149643,0.46455,3874.0,3873.2,0.46464]
[1761052149644,0.3328,3873.6,3873.2,0.3294]
[1761052149836,0.46454,3874.1,3873.5,0.3294]
[1761052150032,0.3328,3874.4,3873.5,0.3294]
[1761052150238,0.3328,3873.8,3873.1,0.4572]
[1761052150746,0.3328,3873.5,3873.1,0.3294]
[1761052151048,0.46462,3873.4,3872.8,0.3294]
[1761052151245,0.3328,3873.0,3872.7,0.0030076]
[1761052151439,0.79748,3872.9,3872.7,0.0030076]
[1761052151641,0.3328,3872.8,3872.7,0.0030076]
[1761052152042,0.1286,3873.8,3872.8,0.3294]
[1761052152246,0.3328,3873.6,3872.8,0.3294]
[1761052152544,0.3328,3873.4,3872.8,0.3294]
[1761052152748,0.79745,3873.2,3872.8,0.3294]
[1761052153041,0.46468,3873.0,3872.8,0.3294]
[1761052153235,0.46462,3873.4,3872.7,0.4676976]
[1761052153435,0.46465,3873.2,3872.8,0.3294]
[1761052153632,0.46466,3873.1,3872.9,0.3294]
[1761052153836,1.16142,3873.9,3872.7,0.4676976]
[1761052153837,0.3328,3874.0,3873.4,0.46461]
[1761052154032,0.3328,3874.0,3873.1,0.1278]
[1761052154033,0.3328,3874.0,3873.7,0.3294]
[1761052154241,0.46456,3873.9,3873.7,0.3294]
[1761052154437,0.3328,3874.0,3873.7,0.3294]
[1761052154642,0.3328,3874.4,3873.7,0.3294]
[1761052155038,0.46456,3873.9,3873.7,0.3294]
[1761052155239,0.1066,3874.5,3873.7,0.3294]
[1761052155240,0.46451,3874.3,3873.7,0.79397]
[1761052155434,0.4645,3874.4,3874.1,0.3294]
[1761052157247,0.3328,3874.9,3874.2,0.3294]
[1761052157448,1.03899591,3874.8,3874.3,0.3294]
[1761052157647,0.79721,3875.1,3874.6,0.3294]
[1761052157947,0.89427415,3875.0,3874.6,0.80257]
[1761052158155,0.46448,3874.6,3874.4,0.3381]
[1761052158347,0.46445,3874.8,3874.6,0.3381]
[1761052159157,0.78415,3874.8,3874.6,0.3381]
[1761052159546,1.16378102,3875.3,3873.8,0.1278]
[1761052159547,0.00280102,3875.3,3875.2,0.4717]
[1761052159851,0.3197,3876.3,3875.6,0.3381]
[1761052160061,0.3197,3876.1,3875.6,0.3381]
[1761052160243,0.46442,3875.1,3874.9,0.3381]
[1761052160452,0.46441,3875.1,3874.9,0.3381]
[1761052160743,0.0026358,3875.1,3875.0,0.80252]
[1761052161653,0.0026358,3875.1,3875.0,5.80252]
[1761052162749,1.16067,3876.4,3875.0,5.80252]
[1761052162750,0.46427,3876.3,3875.9,0.1336]
[1761052162960,0.57574455,3876.2,3876.0,0.3381]
[1761052163158,0.3197,3876.7,3876.0,0.3381]
[1761052163359,0.46427,3876.3,3876.0,0.3381]
[1761052163559,0.46428,3876.2,3876.0,0.3381]
[1761052163751,0.0027371,3876.2,3876.1,0.3381]
[1761052164362,0.78409,3875.4,3875.2,0.3381]
[1761052164557,0.46436,3875.6,3875.2,0.3381]
[1761052164758,0.46437,3875.5,3875.3,0.3381]
[1761052165558,0.46439,3875.3,3875.0,0.46442]
[1761052165756,0.46439,3875.3,3875.1,0.3381]
[1761052166856,0.3197,3876.0,3875.2,0.4644]
[1761052167158,0.46437,3875.5,3875.3,0.3381]
[1761052167457,0.46437,3875.5,3874.4,1.16124]
[1761052167458,0.57458919,3875.4,3873.5,0.3381]
[1761052167655,0.46463,3873.3,3872.4,0.1336]
[1761052167860,2.32208,3875.1,3873.1,0.1377]
[1761052167861,5.63322919,3873.2,3873.1,0.1377]
[1761052168052,2.71558919,3873.2,3872.4,0.1336]
[1761052168358,0.46484,3871.6,3869.6,0.1377]
[1761052168560,0.57913162,3871.5,3869.6,0.41368527]
[1761052168859,0.64316574,3871.4,3868.8,0.1377]
[1761052169053,41.26506,3869.7,3867.4,0.32162286]
[1761052169261,0.46513,3869.1,3867.4,0.32162286]
[1761052169457,0.46513,3869.1,3865.1,20.906]
[1761052169458,0.46523,3868.4,3864.7,1.82039024]
[1761052169650,11.1228968,3868.3,3864.8,0.3283]
[1761052169854,0.00204252,3868.3,3868.2,0.32830001]
[1761052170057,0.00204252,3868.3,3867.7,0.3283]
[1761052170058,0.64290073,3868.3,3867.7,0.3283]
[1761052170259,0.64290073,3868.3,3864.0,1.82039024]
[1761052170260,0.46534,3867.4,3863.6,2.27436013]
[1761052170457,0.649,3868.2,3863.1,0.344]
[1761052170652,0.46531,3867.7,3862.9,2.13458436]
[1761052170852,20.91204252,3868.3,3864.0,0.46574]
[1761052170853,0.46535,3867.3,3864.0,0.46574]
[1761052171060,11.074,3867.2,3864.0,0.00196983]
[1761052171554,1.03761975,3867.1,3864.0,0.00196983]
[1761052171761,0.46554,3865.7,3864.0,0.00196983]
[1761052171953,7.02,3865.9,3864.0,0.00196983]
[1761052172154,7.02,3865.8,3864.1,0.3283]
[1761052172358,0.46563,3865.0,3864.1,0.3283]
[1761052172555,0.00243075,3865.0,3864.1,0.3283]
[1761052172964,21.81159891,3866.2,3864.1,0.3283]
[1761052172965,20.916,3866.2,3864.1,0.3283]
[1761052173176,0.46555,3865.6,3864.1,0.3283]
[1761052173362,0.46559,3865.3,3864.1,0.3283]
[1761052173566,0.04504362,3866.8,3864.1,0.3283]
[1761052173567,0.46547,3866.3,3864.1,0.3283]
[1761052173870,0.46541,3866.8,3866.5,0.1377]
[1761052174162,0.00243246,3866.8,3866.5,0.1377]
[1761052174353,20.922,3868.4,3866.5,0.1377]
[1761052174354,0.46528,3867.9,3866.5,0.1377]
[1761052174554,62.18722,3868.4,3866.5,0.1377]
[1761052174766,20.922,3868.4,3866.5,0.1377]
[1761052175060,8.507,3868.9,3868.7,0.1377]
[1761052175253,0.00247964,3868.9,3868.7,0.14011125]
[1761052175455,0.46503,3869.9,3868.7,0.14011125]
[1761052175655,0.789,3871.5,3868.7,0.14011125]
[1761052175953,0.789,3871.5,3871.3,0.3283]
[1761052175954,0.22269377,3871.4,3871.3,0.3283]
[1761052176158,0.22269377,3871.4,3871.2,1e-08]
[1761052176360,0.22269377,3871.3,3871.2,1e-08]
[1761052176563,11.528,3872.3,3868.7,0.14011125]
[1761052176763,0.4647,3872.7,3869.4,0.46508]
[1761052176953,1.84989379,3875.2,3869.4,0.46508]
[1761052176954,11.589,3873.0,3869.4,0.46508]
[1761052177273,20.929,3873.9,3869.9,0.46502]
[1761052177565,0.46456,3873.8,3870.0,4.59801]
[1761052177756,0.00319684,3873.9,3870.0,7.46574826]
[1761052177964,0.00319684,3873.9,3871.0,0.46489]
[1761052178160,0.00319684,3873.9,3871.1,0.3283]
[1761052178555,0.00319684,3873.9,3871.4,0.3283]
[1761052178776,20.929,3875.7,3870.7,0.945]
[1761052178777,20.929,3875.7,3871.7,0.3283]
[1761052178961,0.89559891,3877.0,3871.6,0.3283]
[1761052179161,1.271,3877.0,3873.0,0.46465]
[1761052179466,1.271,3877.0,3873.5,0.79289]
[1761052179659,1.271,3877.0,3872.9,2.094]
[1761052179660,1.271,3877.0,3874.5,0.3283]
[1761052179859,0.022,3877.8,3874.6,0.3283]
[1761052180060,0.022,3877.8,3875.9,0.3283]
[1761052180259,0.434,3879.6,3876.1,0.3283]
[1761052180456,0.46388,3879.5,3876.1,0.3283]
[1761052180658,0.434,3879.6,3876.1,0.3283]
[1761052180858,0.45507102,3878.1,3876.1,0.3283]
[1761052181063,0.46409,3877.8,3876.1,0.3283]
[1761052181265,0.46412,3877.5,3876.1,0.3283]
[1761052181469,0.46413,3877.4,3876.1,0.3283]
[1761052181762,3.056,3878.2,3876.1,0.3283]
[1761052182170,0.46419,3876.9,3876.1,0.3283]
[1761052182365,3.056,3878.2,3874.8,0.3283]
[1761052182366,0.46425,3876.4,3874.8,0.3283]
[1761052182571,0.00257312,3876.4,3874.8,0.3283]
[1761052182767,0.00257312,3876.4,3868.7,11.62917]
[1761052182768,0.00257312,3876.4,3874.1,0.3283]
[1761052183071,0.46434,3875.7,3874.1,0.3283]
[1761052183265,0.46432,3875.8,3874.5,0.33022669]
[1761052183467,0.46437,3875.4,3874.5,0.33022669]
[1761052183672,0.46439,3875.2,3874.5,0.33022669]
[1761052183866,0.46434,3875.7,3874.5,0.33022669]
[1761052184172,0.04492888,3876.3,3874.5,0.00192669]
[1761052184173,0.46443,3874.9,3874.5,0.00192669]
[1761052184364,5.0,3876.2,3874.5,0.00192669]
[1761052184567,0.46447,3874.6,3873.9,0.3283]
[1761052184766,0.4645,3874.3,3873.9,0.3283]
[1761052184972,0.4645,3874.3,3872.0,0.3283]
[1761052185162,0.4645,3874.3,3871.6,0.46481]
[1761052185163,0.4645,3874.3,3871.7,0.3283]
[1761052185359,0.46444,3874.8,3872.2,0.3283]
[1761052185568,0.46438,3875.3,3872.2,0.3283]
[1761052185765,0.46438,3875.3,3872.1,0.46475]
[1761052185766,0.46446,3874.7,3872.3,0.46473]
[1761052185965,6.466,3876.1,3872.4,0.3283]
[1761052186165,0.46429,3876.0,3873.4,0.3283]
[1761052186374,0.46434,3875.7,3873.4,0.3283]
[1761052186576,40.8,3875.6,3873.4,0.3283]
[1761052187272,40.8,3875.6,3873.7,0.46456]
[1761052187466,0.46427,3876.3,3874.0,0.3283]
[1761052187771,0.00257312,3876.4,3874.2,0.3283]
[1761052187979,0.46431,3875.9,3874.2,0.3283]
[1761052188273,40.8,3876.2,3874.2,0.3283]
[1761052188473,0.46436,3875.5,3874.2,0.3283]
[1761052188771,0.46439,3875.2,3874.2,0.3283]
[1761052188977,40.8,3876.2,3874.2,0.3283]
[1761052189275,0.46439,3875.2,3874.2,0.3283]
[1761052189474,0.46435,3875.5,3874.2,0.3283]
[1761052189773,40.8,3876.2,3874.2,0.3283]
[1761052189975,0.46433,3875.7,3874.2,0.3283]
[1761052190174,0.46429,3876.1,3874.3,0.3283]
[1761052190369,0.46432,3875.8,3874.3,0.3283]
[1761052191073,0.46428,3876.1,3874.5,0.3283]
[1761052191259,40.8,3876.2,3874.7,0.3283]
[1761052191460,0.46428,3876.1,3874.7,0.3283]
[1761052191665,40.8,3876.2,3874.8,0.3283]
[1761052192070,0.46432,3875.8,3874.8,0.3283]
[1761052192564,0.46436,3875.5,3874.8,0.3283]
[1761052192766,0.46431,3875.9,3874.8,0.3283]
[1761052192971,0.46434,3875.7,3874.8,0.3283]
[1761052193170,0.46429,3876.1,3874.8,0.3283]
[1761052193373,40.8,3876.2,3874.9,0.3283]
[1761052194674,0.00257312,3876.4,3875.2,0.3283]
[1761052194874,0.46426,3876.3,3875.2,0.3283]
[1761052195073,0.00257312,3876.4,3875.2,0.3283]
[1761052195376,0.00257312,3876.4,3875.4,0.3283]
[1761052196073,0.00257312,3876.4,3875.6,0.3283]
[1761052196573,0.46427,3876.2,3875.6,0.3283]
[1761052196778,0.00257312,3876.4,3875.6,0.3283]
[1761052196981,0.46426,3876.3,3875.6,0.3283]
[1761052197561,0.46429,3876.1,3875.6,0.3283]
[1761052197780,0.00257312,3876.4,3875.6,0.3283]
[1761052197781,0.46431,3875.9,3875.6,0.3283]
[1761052198177,0.00257312,3876.4,3875.6,0.3283]
[1761052198178,0.46427,3876.2,3875.6,0.3283]
[1761052198875,0.00257312,3876.4,3875.6,0.3283]
[1761052199481,0.46427,3876.2,3875.6,0.3283]
[1761052199683,0.46429,3876.1,3875.6,0.3283]
[1761052199873,0.4643,3875.9,3875.6,0.3283]
[1761052200078,11.517,3876.0,3874.6,0.3978]
[1761052200274,0.46443,3874.9,3874.5,0.00244346]
[1761052200472,11.517,3876.0,3874.6,0.3978]
[1761052200786,0.4643,3876.0,3874.8,0.3978]
[1761052201078,0.00257312,3876.4,3874.5,0.00244346]
[1761052201079,0.46446,3874.6,3874.5,0.00244346]
[1761052201270,0.46454,3874.0,3872.7,0.46468]
[1761052201480,0.46458,3873.6,3872.2,0.46474]
[1761052201682,0.46454,3873.9,3871.4,1.1621]
[1761052201881,40.8,3874.6,3872.7,0.46468]
[1761052202079,11.57,3874.8,3872.1,1.1619]
[1761052202279,11.57192446,3874.8,3872.6,0.46469]
[1761052202475,0.46458,3873.7,3872.1,0.00191956]
[1761052202678,0.46456,3873.8,3872.6,0.46469]
[1761052202881,0.46459,3873.5,3872.3,0.46472]
[1761052203081,0.46456,3873.8,3872.4,0.3978]
[1761052203383,0.46458,3873.6,3872.5,0.3978]
[1761052203572,0.00192446,3874.8,3873.1,0.3978]
[1761052203773,0.46446,3874.6,3873.6,0.3978]
[1761052204076,0.46447,3874.5,3873.6,0.3978]
[1761052204277,40.8,3874.7,3873.6,0.3978]
[1761052204579,0.46452,3874.1,3873.6,0.3978]
[1761052204775,40.8,3874.7,3873.6,0.3978]
[1761052204776,0.46453,3874.0,3873.6,0.3978]
[1761052204976,0.46452,3874.0,3873.6,0.3978]
[1761052205179,0.46456,3873.7,3873.6,0.3978]
[1761052205680,0.46456,3873.7,3873.0,0.1388]
[1761052205681,1.49558503,3874.3,3873.1,0.3978]
[1761052205878,0.46461,3873.3,3873.1,0.3978]
[1761052206184,0.46474,3872.2,3871.3,0.3978]
[1761052206485,40.8,3872.2,3871.1,0.3978]
[1761052206681,1.07891133,3872.1,3871.3,0.3978]
[1761052206884,0.46479,3871.8,3871.3,0.3978]
[1761052207179,0.46483,3871.5,3871.3,0.3978]
[1761052207386,0.00283905,3871.5,3871.3,0.40032768]
[1761052208281,0.00283905,3871.5,3871.4,0.3978]
[1761052208482,1.08231175,3871.5,3871.4,0.3978]
[1761052208675,1.08231175,3871.5,3871.3,0.00252768]
[1761052208870,0.6146527,3871.4,3871.3,0.40032768]
[1761052209076,0.89979225,3872.3,3872.1,0.3978]